Cogmind - Beta 16 @@@ ROGUE MODE // 2025.11.27 @ 10:40:44 Player: Librarian Ape Result: Destroyed by RG-HI7(R) with Subdweller Beam Cannon Performance ------------- Evolutions (0) 0 Regions Visited (2) 400 Robots Destroyed (24) 120 Value Destroyed (635) 635 Prototype IDs (2) 40 Alien Tech Used (0) 0 Bonus (0) 0 TOTAL SCORE: 1195 Bonus ------- None Cogmind --------- Core Integrity 0/250 Matter 300/300 Energy 119/125 System Corruption 0% Temperature Cool (11) Movement Treading (240) Ox1 Location -10/Subcaves Parts ------- > --- POWER (1) -------- Light Ion Engine > --- PROPULSION (2) --- Improved Treads Improved Treads > --- UTILITY (2) ------ Huge Storage Unit Improved Terrain Scanner > --- WEAPON (2) ------- Particle Gun Beam Cannon > --- INVENTORY (25) --- Improved Ion Engine Improved Ion Engine Improved Ion Engine Improved Ion Engine Light Nuclear Core Light Treads Improved Treads Improved Treads Improved Hover Unit Improved Hover Unit VTOL Module VTOL Module VTOL Module VTOL Module Small Storage Unit High-capacity Matter Pod (200) Sensor Array Signal Interpreter Hardened Light Armor Plating Hardened Light Armor Plating Hardened Light Armor Plating Hardened Light Armor Plating Grenade Launcher Grenade Launcher Hammer Peak State ------------ > --- POWER ------------ Light Ion Engine > --- PROPULSION ------- Improved Treads Improved Treads > --- UTILITY ---------- Huge Storage Unit Improved Terrain Scanner > --- WEAPON ----------- Particle Gun Beam Cannon > --- INVENTORY -------- Improved Ion Engine Improved Ion Engine Improved Ion Engine Improved Ion Engine Light Nuclear Core Light Treads Improved Treads Improved Treads Improved Hover Unit Improved Hover Unit VTOL Module VTOL Module VTOL Module VTOL Module Small Storage Unit High-capacity Matter Pod Sensor Array Signal Interpreter Hardened Light Armor Plating Hardened Light Armor Plating Hardened Light Armor Plating Hardened Light Armor Plating Grenade Launcher Grenade Launcher Hammer [Rating: 16] Favorites ----------- Power Light Ion Engine Engine Light Ion Engine Propulsion Improved Treads Treads Improved Treads Wheel Wheel Utility Huge Storage Unit Device Seismic Detector Storage Huge Storage Unit Protection Hardened Light Armor Plating Weapon Medium Laser Energy Gun Medium Laser Energy Cannon Beam Cannon Ballistic Gun Light Assault Rifle Launcher Grenade Launcher Special Weapon Mining Laser Build | -11 -10 -10 ------- Run | Yrd Mat Sub Slots Evolved . | . . . Power . | . . . Propulsion . | . . . Utility . | . . . Weapon . | . . . Parts Attached 21 | 7 13 1 Power 2 | 1 1 . Engine 2 | 1 1 . Core . | . . . Reactor . | . . . Propulsion 8 | 2 6 . Treads 4 | . 4 . Leg . | . . . Wheel 4 | 2 2 . Hover . | . . . Flight . | . . . Utility 5 | 2 2 1 Device 2 | 1 . 1 Storage 2 | 1 1 . Processor . | . . . Hackware . | . . . Protection 1 | . 1 . Artifact . | . . . Weapon 6 | 2 4 . Energy Gun 2 | 1 1 . Energy Cannon 1 | . 1 . Ballistic Gun 1 | 1 . . Ballistic Cannon . | . . . Launcher 1 | . 1 . Special Weapon 1 | . 1 . Impact Weapon . | . . . Slashing Weapon . | . . . Piercing Weapon . | . . . Special Melee Weapon . | . . . Unidentified Prototypes . | . . . Parts Lost 6 | . 6 . Power . | . . . Propulsion 3 | . 3 . Utility 1 | . 1 . Weapon 2 | . 2 . Highest Loss Streak 3 | . 3 . To Critical Strikes . | . . . Average Backups 15 | 4 14 25 Power 3 | . 3 5 Propulsion 5 | 2 5 9 Utility 4 | . 3 8 Weapon 2 | 1 2 3 Tool/Special . | . . . Unused Backups 23 | . 3 20 Power 5 | . . 5 Propulsion 11 | . 2 9 Utility 6 | . . 6 Weapon 1 | . 1 . Tool/Special . | . . . Average Slot Usage (%) 95 | . 94 100 Engine 14 | . 14 14 Treads 20 | . 19 28 Wheel 6 | . 8 . Device 11 | . 11 14 Storage 14 | . 14 14 Protection 1 | . 2 . Energy Gun 13 | . 13 14 Energy Cannon 7 | . 5 14 Ballistic Gun 3 | . 3 . Peak Build Rating 16 | 8 15 16 Average Rating 10 | 5 10 16 On Entrance 7 | . 8 15 Avg Prop Armor Cover (%) . | . . . Naked Turns . | . . . Heaviest Build 94 | 12 94 90 Greatest Support 46 | 26 46 46 Greatest Overweight (x) 2 | . 2 1 Average Overweight (x) . | . . 1 Largest Inventory Capacity 25 | 8 25 25 Average Capacity 18 | 7 18 25 Most Carried 25 | 8 25 25 Average Carried 15 | 4 14 25 Final Capacity 25 | 8 25 25 Final Carried 25 | 8 25 25 Class Distribution -------------------- 100% | Mutant Dominant Class ---------------- Mutant | -10/Materials Mutant | -10/Subcaves Resources | -11 -10 -10 ----------- Run | Yrd Mat Sub Matter Collected 725 | 279 436 10 Remotely . | . . . Salvage Created 806 | 170 596 40 Parts 51 | 13 34 4 Haulers Intercepted 2 | . 2 . Recyclers Shooed . | . . . Parts Field Recycled . | . . . Retrieved Matter . | . . . Parts Self-Destructed 12 | . . 12 Prevented . | . . . Parts Restored . | . . . Kills | -11 -10 -10 ------- Run | Yrd Mat Sub Combat Hostiles Destroyed 14 | . 13 1 Guns 4 | . 4 . Cannons 3 | . 2 1 AOE 6 | . 6 . Classes Destroyed 7 | 2 4 1 Worker 1 | . 1 . Tunneler 4 | 4 . . Hauler 2 | . 2 . Recycler 1 | 1 . . Watcher 2 | . 2 . Grunt 13 | . 13 . Subdweller 1 | . . 1 Best Kill Streak 5 | 5 5 1 Combat Bots Only 4 | . 4 1 Max Kills in Single Turn 2 | 1 2 1 Gunslinging . | . . . Exploded 2 | . 2 . Melee . | . . . Uniques/NPCs Destroyed . | . . . Combat | -11 -10 -10 -------- Run | Yrd Mat Sub Hostile Shots Fired 74 | . 64 10 Missed 15 | . 11 4 Hits 59 | . 53 6 Projectile 59 | . 53 6 Critical Strikes 2 | . 2 . Damage Taken 871 | . 699 172 Core 277 | . 219 58 Absorbed by Shields . | . . . Core Remaining (%) 100 | 100 . . Volleys Fired 73 | 9 59 5 Largest 2 | 2 2 2 Hottest 125 | 70 125 125 Shots Fired 122 | 18 94 10 Gun 95 | 18 72 5 Cannon 19 | . 14 5 Launcher 7 | . 7 . Special 1 | . 1 . Kinetic 32 | 9 23 . Thermal 83 | 9 64 10 Explosive 7 | . 7 . Electromagnetic . | . . . Robot Hit Streak 14 | 5 14 11 Robot Miss Streak 3 | 2 3 2 Penetration Max . | . . . Secondary Targets . | . . . Shots Hit Robots 85 | 12 66 7 Core Hits 39 | 8 29 2 Critical Kills . | . . . Critical Parts Destroyed . | . . . Critical Strikes 4 | 2 2 . Burn 4 | 2 2 . Melee Attacks . | . . . Impact . | . . . Slashing . | . . . Piercing . | . . . Sneak Attacks . | . . . Combat Hostiles . | . . . Follow-up Attacks . | . . . Damage Inflicted 1509 | 128 1316 65 Guns 730 | 128 571 31 Cannons 225 | . 191 34 Explosions 554 | . 554 . Melee . | . . . Ramming . | . . . Kinetic 180 | 41 139 . Thermal 775 | 87 623 65 Explosive 554 | . 554 . Electromagnetic . | . . . Impact . | . . . Slashing . | . . . Piercing . | . . . Highest Corruption . | . . . Average Corruption . | . . . Corruption Purged . | . . . Corruption Blocked . | . . . Overload Shots . | . . . Overflow Damage 8 | . 8 . Projectiles 8 | . 8 . Explosions . | . . . Melee . | . . . Knockbacks . | . . . Impact . | . . . Kinetic . | . . . Secondary . | . . . Self-Inflicted Damage 30 | . 30 . Shots 1 | . 1 . Rammed . | . . . Targets Rammed . | . . . Kicked . | . . . Crushed . | . . . Highest Temperature 312 | 120 312 24 Average Temperature 95 | 57 105 9 Received Heat Transfer 462 | . 408 54 Siege Activations . | . . . Martial Activations . | . . . Shielding Activations . | . . . Robots Disrupted . | . . . Combat Hostiles . | . . . Robots Corrupted . | . . . Combat Hostiles . | . . . Parts Fried . | . . . Impact Corruptions . | . . . Robots Melted 1 | . 1 . Combat Hostiles 1 | . 1 . Parts Melted 4 | 1 3 . Heat Transferred 2331 | 407 1776 148 Parts Sabotaged . | . . . Parts Stolen . | . . . Parts Stripped . | . . . Power Chain Reactions . | . . . Alert | -11 -10 -10 ------- Run | Yrd Mat Sub Maximum Alert Level . | . . . Low Security (%) 100 | 100 100 . Level 1 . | . . . Level 2 . | . . . Level 3 . | . . . Level 4 . | . . . Level 5 . | . . . High Security . | . . . Max Security . | . . . Peak Influence 166 | 15 166 . Initial 6 | . 6 . Average 14 | 3 15 . Influence Increases 459 | 25 434 . Destroy 0b10 Robot/C 260 | . 260 . Destroy 0b10 Robot/NC 50 | 25 25 . Destroy Leader 58 | . 58 . Successful Hack 25 | . 25 . Disable Machine 45 | . 45 . Destroy Structure 21 | . 21 . Influence Decreases 459 | 15 444 . Entered New Map 4 | . 4 . Time Decay 272 | 15 257 . Lost Part 33 | . 33 . Purge Threat 150 | . 150 . Squads Dispatched 1 | . 1 . Investigation 1 | . 1 . Extermination . | . . . Reinforcement . | . . . Assault . | . . . Garrison . | . . . Intercept . | . . . Searches Triggered . | . . . Construction Impeded . | . . . Haulers Reinforced . | . . . Active Scanning Responses . | . . . Cargo Convoy Interrupts . | . . . Stealth | -11 -10 -10 --------- Run | Yrd Mat Sub Distress Signals 1 | . 1 . Communications Jammed . | . . . Distress Signals . | . . . Times Spotted 21 | . 19 2 Peak Tracking Total 3 | . 3 1 Tactical Retreats . | . . . Traps | -11 -10 -10 ------- Run | Yrd Mat Sub Traps Triggered 1 | . 1 . Indirectly . | . . . Trap Hack Attempts . | . . . Triggered . | . . . Disarmed . | . . . Reprogrammed . | . . . Reused . | . . . Traps Extracted . | . . . Installed . | . . . Triggered . | . . . Machines | -11 -10 -10 ---------- Run | Yrd Mat Sub Machines Disabled 3 | . 3 . Max in Single Turn 1 | . 1 . Machines Repaired . | . . . Machines Dismantled . | . . . Machines Sabotaged . | . . . Overloaded Fab Kills . | . . . Hacking | -11 -10 -10 --------- Run | Yrd Mat Sub Machines Accessed 5 | . 5 . Terminals 5 | . 5 . Fabricators . | . . . Repair Stations . | . . . Recycling Units . | . . . Scanalyzers . | . . . Garrison Access . | . . . Total Hacks 13 | . 13 . Successful 8 | . 8 . Failed 5 | . 5 . Catastrophic . | . . . Database Lockouts . | . . . Manual 11 | . 11 . Terminals 13 | . 13 . Fabricators . | . . . Repair Stations . | . . . Recycling Units . | . . . Scanalyzers . | . . . Garrison Access . | . . . Terminal Hacks 2 | . 2 . Prototype ID Bank 1 | . 1 . Unreport Threat 1 | . 1 . Fabricator Hacks . | . . . Repair Station Hacks . | . . . Recycling Unit Hacks . | . . . Scanalyzer . | . . . Garrison Access Hacks . | . . . Unauthorized Hacks 6 | . 6 . Terminals 6 | . 6 . Botnet 1 | . 1 . Skim 5 | . 5 . Fabricators . | . . . Repair Stations . | . . . Recycling Units . | . . . Scanalyzers . | . . . Garrison Access . | . . . Data Cores Recovered . | . . . Used . | . . . Hacking Detections 5 | . 5 . Full Trace Events . | . . . Feedback Events . | . . . Feedback Blocked . | . . . Robot Schematics Acquired . | . . . Robots Built . | . . . Authchips . | . . . Time . | . . . Total Robot Build Rating . | . . . Part Schematics Acquired . | . . . Parts Built . | . . . Authchips . | . . . Time . | . . . Total Part Build Rating . | . . . Part Studies Acquired . | . . . Parts Repaired . | . . . Time . | . . . Parts Recycled . | . . . Recycled Matter . | . . . Retrieved Matter . | . . . Retrieved Components . | . . . Parts Scanalyzed . | . . . Part Schematics Acquired . | . . . Parts Damaged . | . . . Bothacking | -11 -10 -10 ------------ Run | Yrd Mat Sub Used RIF Installer . | . . . Robots Hacked . | . . . Non-combat . | . . . Combat . | . . . Robot Hacks Applied . | . . . Relay Couplers Released . | . . . Fabnet Peak Effective % . | . . . Robots Rewired . | . . . Allies Hacked . | . . . Hacks Repelled . | . . . Allies | -11 -10 -10 -------- Run | Yrd Mat Sub Total Allies . | . . . Largest Group . | . . . Highest-Rated Group . | . . . Highest-Rated Ally . | . . . Total Orders . | . . . Ally Attacks . | . . . Total Damage . | . . . Kills . | . . . Allies Corrupted . | . . . Allies Melted . | . . . Intel | -11 -10 -10 ------- Run | Yrd Mat Sub Active Infowar (turns) 1232 | 8 956 268 Terrain 268 | . . 268 Seismic 964 | 8 956 . Robot Analysis Total . | . . . Derelict Logs Recovered . | . . . Drone Launches . | . . . Drone Recoveries . | . . . Exploration | -11 -10 -10 ------------- Run | Yrd Mat Sub Turns Passed 1561 | 99 1194 268 Spaces Moved 589 | 64 421 104 Core 3 | 3 . . Treads 383 | . 279 104 Legs . | . . . Wheels 203 | 61 142 . Hover . | . . . Flight . | . . . Fastest Speed 50 | 50 80 240 Average Speed 192 | 87 196 240 Slowest Speed 320 | 90 320 240 Overloaded Moves . | . . . Propulsion Burnouts . | . . . Robots Hopped . | . . . Potential Cave-ins . | . . . Cave-ins Triggered . | . . . Exploration Rate (%) 28 | 4 74 6 Regions Visited 2 Branch Regions 1 Pre-discovered Areas 3 | . 3 . Known Exits Taken 1 | . 1 . Unknown Exits Taken 1 | 1 . . Scrap Searched . | . . . Spaces Dug . | . . . Terrain Destroyed 25 | . 25 . Melee . | . . . Projectile . | . . . AOE 25 | . 25 . Terrain Rammed . | . . . Walls Destroyed . | . . . Machines Disabled . | . . . Actions | -11 -10 -10 --------- Run | Yrd Mat Sub Total 895 | 87 696 112 Wait 168 | . 166 2 Move 587 | 63 420 104 Hop . | . . . Pick Up 34 | 8 26 . Fast Attach 9 | 7 2 . Attach 4 | . 4 . Detach . | . . . Swap 12 | . 11 1 Drop 8 | . 8 . Fire 73 | 9 59 5 Melee . | . . . Ram . | . . . Kick . | . . . Crush . | . . . Escape Stasis . | . . . Rewire . | . . . Trap . | . . . Miscellaneous . | . . . Route ------- -11/Scrapyard -10/Materials (discovered 6 exits: *Mat x3 / [*Min x2] / *Sub) -10/Subcaves (discovered 2 exits: *Mat x2) History --------- Turn | Location | Event 20 | -11/Scrapyard | Discovered new exit (range 16) 100 | -11/Scrapyard | Entered Materials 306 | -10/Materials | Build established: Mutant 379 | -10/Materials | Core integrity fell below 50% 404 | -10/Materials | Discovered new exit (range 10) 436 | -10/Materials | Core integrity fell below 20% 496 | -10/Materials | Lost 3 parts (2n1w) 507 | -10/Materials | Discovered new exit (range 15) 659 | -10/Materials | Discovered new exit (range 15) 790 | -10/Materials | Learned 4 Recycling zone layouts 869 | -10/Materials | Learned 2 Storage zone layouts 938 | -10/Materials | Learned location of Mines (-10) 999 | -10/Materials | Identified exit to Materials 999 | -10/Materials | Identified exit to Subcaves 1051 | -10/Materials | Learned location of Mines (-9) 1073 | -10/Materials | Discovered new exit (range 16) 1091 | -10/Materials | Learned location of Subcaves (-10) 1214 | -10/Materials | Learned 2 Storage zone layouts 1277 | -10/Materials | Loaded intel: 6 terminal locations 1294 | -10/Materials | Entered Subcaves 1295 | -10/Subcaves | Approached by a straggling Scientist 1295 | -10/Subcaves | Identified exit to Materials 1562 | -10/Subcaves | Destroyed by RG-HI7(R) with Subdweller Beam Cannon Last Messages --------------- 01245_ Acquired Grenade Launcher. 01246_ Acquired 35 matter. 01248_ K-01 Serf collects debris. 01277_ >> SKIM: Loading Materials terminal intel (x6)... 01277_ >> SKIM: Data seek routine purged. LOCATION=SUBCAVES AMBIENT_HEAT=-10 GOAL=ESCAPE 01295_ XY-HRF(c): "Thank the algorithms! I was beginning to lose hope I'd never make it past all the Subs lurking out here." Loading 2 Materials entrances... 01298_ XY-HRF(c): "Hey, let me tag along and I can get us both out of this nasty situation. At least I think I can... The group I got separated from was talking about a shortcut back to the UFD." 01337_ Acquired 10 matter. XY-HRF(c): "I think it's somewhere south of here" 01492_ UY-TFG(R) destroyed. XY-HRF(c): "I think it's somewhere south of here" 01510_ Subatomizers dissect the Sub. Optics. XY-HRF(c): "I think it's somewhere south of here" Map ----- +----------------------------------------------------+ | ?????????????????????????????????????????????????? | | ?????????????????????????????????????????????????? | | ???????#?#???????????????????????????????????????? | | #???#????????????????????????????????????????????? | | ?#???????#??#??#?????????????????????????????????? | | ??????????????????"??????????????????????????????? | | ???##???????????? ???????????????????????????????? | | ????????????????????????####?????????????????????? | | ???????????????????????? ?#????????????????????? | | ???????????##?###?? ???? ##??????#??????????????? | | #????????## #??# ??????# #?#???#???????????????? | | ???????## ##?# ##?###" ###???????????????????? | | ???????# ### ### " ####????????????????? | | ??????## ??# ###??????????????? | | ####### #?????# % ##??????????????? | | # #?###### ####???????????????????? | | # ### ## % ##??????????????????????? | | !%& """"" # ##??#?????? ?????????????? | | #### &=& % ## "#?##?????????????????????? | | ##?#" " ### ## #?????????????????????? | | ##" ##?## #??????????????????????? | | ## ####### ####?# c #??????????????????????? | | ######?????####???## ##?????????????????????? | | #####?#?????#?#?????#?# #???? ????????????????? | | ??????????##???????# #" ####???????????????????? | | ????????#??????????# "@ #?? ????????????????? | | ##?????#???#??#????#"" R## ? ? ???????????? | | ????#???#??#???????## # ??????????????? | | ?###??????#?????#???### ### #???????????? | | ???????????#?#????????# #?? ## ####???????????? | | ??#?????#?##?????????## #??? #?#??????????????? | | ???#?????#????#???#?#?# ##???? ???????????????? | | ?????#??#???????????#?# ??????? ??????????????? | | ?????????#????????#???"""???????? ?????????????? | | ??????????????????????"""????????? ##????????????? | | ??????????#???????????"""??????????#?????????????? | | ?????????????????????????????#???????????????????? | | ?????????????????????????????????????????????????? | | ??????????????????????????#??????????????????????? | | ??????????????????????????????#??????????????????? | | ?????????????????????????????????????????????????? | | ?????????????????????????????????????????????????? | | ?????????????????????????????????????????????????? | | ?????????????????????????????????????????????????? | | ?????????????????????????????????????????????????? | | ?????????????????????????????????????????????????? | | ?????????????????????????????????????????????????? | | ?????????????????????????????????????????????????? | | ?????????????????????????????????????????????????? | | ?????????????????????????????????????????????????? | +----------------------------------------------------+ Best States ------------- Heat Dissipation 25 Energy Generation 10 Energy Capacity 125 Matter Stores 300 Matter Capacity 300 Sight Range 16 Terrain Scan Range 16 Terrain Scan Density 10 Armor Coverage 150 Evasion (%) 44 Recoil Reduction 2 Item Schematics ----------------- None Robot Schematics ------------------ None Fabricated ------------ Nothing Repaired ---------- Nothing Studied --------- None Alien Tech Used ----------------- None Achievements -------------- None Challenges ------------ None Game ------ Seed PointStorageKatana Manual? 0 Play Time 00:17:44 Cumulative 55.3 hours Start 2025.11.27 @ 10:24:19 End 2025.11.27 @ 10:40:44 Sessions 1 Manual Loads 0 Difficulty Rogue Special Mode None Game No. 77 Rogue 77 Adventurer 0 Explorer 0 Win Type - Total 1 Types 1/0/0/0/0/0/0/0/0/0 Lore% 42 Gallery% 36 Achievement% 32 Wizard Run 0 Options --------- Layout 0 ASCII 0 Keyboard 0 Movement Mouse Keybinds 0 Fullscreen 2 Font 24/Crisp Map View 76x50 Zoom Use 0% Tactical HUD 1 Map Filters NONE Filters NONE Steam 1 RUN: 6b1cfa8b-dc83-4f73-b9e8-349f2a901f69